[Event "FRA-chTW Top 12 2019"]
[Site "Vandoeuvre"]
[Date "2019.05.03"]
[Round "2.11"]
[White "Moingt, Anne"]
[Black "Leconte, Maria"]
[Result "1/2-1/2"]
[ECO "B50"]
[WhiteElo "2042"]
[BlackElo "2246"]
[Annotator "NA"]
[PlyCount "86"]
[EventDate "2019.05.02"]
[EventType "team-tourn"]
[EventCountry "FRA"]
[SourceTitle "playchess.com"]
[Source "ChessBase"]
[SourceQuality "1"]
[TimeControl "40/5400+30:1800+30"]

1. e4 {[%emt 0:00:00]} c5 {[%emt 0:00:00]} 2. Nf3 {[%emt 0:00:00]} d6 {[%emt 0:00:00]} 3. c3 {[%emt 0:01:04]} Nf6 {[%emt 0:00:40]} 4. Bd3 {[%emt 0:02:04]} g6 {[%emt 0:10:52]} 5. h3 {[%emt 0:01:46]} Bg7 {[%emt 0:03:25]} 6. Bc2 {[%emt 0:00:35]} O-O {[%emt 0:00:35]} 7. O-O {[%emt 0:00:14]} Nc6 {[%emt 0:00:32]} 8. a3 {[%emt 0:03:39]} e5 {[%emt 0:08:18]} 9. d4 {[%emt 0:14:16]} Qc7 {[%emt 0:00:32]} 10. dxc5 {[%emt 0:05:55]} dxc5 {[%emt 0:00:14]} 11. Qe2 {[%emt 0:00:25]} Nh5 {[%emt 0:04:40]} 12. Rd1 {[%emt 0:07:16]} b6 {[%emt 0:11:44]} 13. Be3 {[%emt 0:05:05]} Bb7 {[%emt 0:00:28]} 14. a4 {[%emt 0:01:19]} a6 {[%emt 0:08:50]} 15. Na3 {[%emt 0:03:10]} Rad8 {[%emt 0:05:13]} 16. Nc4 {[%emt 0:08:18]} Rfe8 {[%emt 0:07:37]} 17. Rxd8 {[%emt 0:06:47]} Rxd8 {[%emt 0:00:33]} 18. Rd1 {[%emt 0:00:07]} Nf4 {[%emt 0:01:19]} 19. Qf1 {[%emt 0:02:47]} Ne6 {[%emt 0:08:59]} 20. Ng5 {[%emt 0:07:48]} Bc8 {[%emt 0:03:20]} 21. Bb3 {[%emt 0:07:55]} h6 {[%emt 0:02:13]} 22. Nf3 {[%emt 0:01:33]} Nf4 {[%emt 0:05:06]} 23. Rxd8+ {[%emt 0:06:15]} Nxd8 {[%emt 0:01:47]} 24. Qd1 {[%emt 0:00:37]} Be6 {[%emt 0:00:30]} 25. Na3 {[%emt 0:04:02]} Nb7 {[%emt 0:04:21]} 26. Bxe6 {[%emt 0:01:25]} fxe6 {[%emt 0:01:54]} 27. Qb3 {[%emt 0:02:30]} Na5 {[%emt 0:02:00]} 28. Qd1 {[%emt 0:00:36]} c4 {[%emt 0:00:38]} 29. Ne1 {[%emt 0:01:49]} Bf8 {[%emt 0:00:36]} 30. Qg4 {[%emt 0:00:41]} Kf7 {[%emt 0:00:30]} 31. g3 {[%emt 0:00:52]} Nh5 {[%emt 0:00:54]} 32. Nac2 {[%emt 0:00:55]} Nc6 {[%emt 0:00:58]} 33. Ng2 {[%emt 0:00:46]} Nf6 {[%emt 0:00:20]} 34. Qe2 {[%emt 0:00:29]} b5 {[%emt 0:00:50]} 35. axb5 {[%emt 0:00:02]} axb5 {[%emt 0:00:04]} 36. f3 {[%emt 0:00:38]} Na5 {[%emt 0:01:11]} 37. Qd1 {[%emt 0:00:40]} Nb3 {[%emt 0:00:19]} 38. Nge1 {[%emt 0:00:21]} Bc5 {[%emt 0:01:15]} 39. Kf2 {[%emt 0:00:23]} Qd7 {[%emt 0:00:21]} 40. Qxd7+ {[%emt 0:00:34]} Nxd7 {[%emt 0:00:01]} 41. Bxc5 {[%emt 0:30:15]} Ndxc5 {[%emt 0:30:04]} 42. Na3 {[%emt 0:00:10]} Na4 {[%emt 0:01:05]} 43. Nxb5 {[%emt 0:00:06]} Nxb2 {[%emt 0:00:03]} 1/2-1/2

[Event "FRA-chTW Top 12 2019"]
[Site "Vandoeuvre"]
[Date "2019.05.03"]
[Round "2.12"]
[White "Dornbusch, Tatiana"]
[Black "Flear, Christine"]
[Result "1-0"]
[ECO "A50"]
[WhiteElo "2285"]
[BlackElo "2037"]
[Annotator "NA"]
[PlyCount "53"]
[EventDate "2019.05.02"]
[EventType "team-tourn"]
[EventCountry "FRA"]
[SourceTitle "playchess.com"]
[Source "ChessBase"]
[SourceQuality "1"]
[TimeControl "40/5400+30:1800+30"]

1. d4 {[%emt 0:00:00]} Nf6 {[%emt 0:00:00]} 2. Nf3 {[%emt 0:00:30]} b6 {[%emt 0:00:04]} 3. g3 {[%emt 0:02:16]} Bb7 {[%emt 0:00:36]} 4. Bg2 {[%emt 0:00:05]} g6 {[%emt 0:01:31]} 5. c4 {[%emt 0:03:17]} Bg7 {[%emt 0:01:29]} 6. O-O {[%emt 0:01:56]} O-O {[%emt 0:00:07]} 7. Nc3 {[%emt 0:01:37]} Ne4 {[%emt 0:01:45]} 8. Bd2 {[%emt 0:01:36]} Nxd2 {[%emt 0:01:19]} 9. Qxd2 {[%emt 0:00:17]} c5 {[%emt 0:00:49]} 10. d5 {[%emt 0:08:49]} d6 {[%emt 0:00:44]} 11. h4 {[%emt 0:15:44]} h5 {[%emt 0:11:14]} 12. Ng5 {[%emt 0:03:09]} Nd7 {[%emt 0:03:58]} 13. f4 {[%emt 0:04:07]} Nf6 $16 {[%emt 0:08:24]} (13... Bc8 $14) 14. f5 {[%emt 0:06:26]} Bc8 {[%emt 0:39:07]} 15. fxg6 {[%emt 0:04:20]} fxg6 {[%emt 0:00:09]} 16. Ne6 {[%emt 0:04:01]} Bxe6 {[%emt 0:00:20]} 17. dxe6 {[%emt 0:00:03]} Ng4 {[%emt 0:07:46]} 18. Nd5 {[%emt 0:13:55]} Bd4+ {[%emt 0:06:12]} 19. e3 {[%emt 0:00:45]} Be5 {[%emt 0:05:36]} 20. Qc2 {[%emt 0:03:11]} Kg7 {[%emt 0:01:36]} 21. Rxf8 {[%emt 0:00:36]} Qxf8 {[%emt 0:00:32]} 22. Rf1 {[%emt 0:00:05]} Nf6 {[%emt 0:00:24]} 23. Be4 {[%emt 0:04:38]} Rb8 {[%emt 0:01:27]} 24. Bxg6 {[%emt 0:00:41]} Kh6 {[%emt 0:02:17]} 25. Qf5 {[%emt 0:02:47]} Rb7 {[%emt 0:04:03]} 26. Nxf6 {[%emt 0:01:46]} Bxf6 {[%emt 0:00:12]} 27. Qxh5+ {[%emt 0:00:04]} 1-0

[Event "FRA-chTW Top 12 2019"]
[Site "Vandoeuvre"]
[Date "2019.05.03"]
[Round "3.1"]
[White "Collas, Silvia"]
[Black "Javakhishvili, Lela"]
[Result "1/2-1/2"]
[ECO "E15"]
[WhiteElo "2279"]
[BlackElo "2459"]
[Annotator "ChessBase"]
[PlyCount "49"]
[EventDate "2019.05.02"]
[EventType "team-tourn"]
[EventCountry "FRA"]
[SourceTitle "playchess.com"]
[Source "ChessBase"]
[SourceQuality "1"]
[TimeControl "40/5400+30:1800+30"]

1. d4 {[%emt 0:00:00]} Nf6 {[%emt 0:00:00]} 2. Nf3 {[%emt 0:00:00]} e6 {[%emt 0:00:00]} 3. c4 {[%emt 0:00:19]} b6 {[%emt 0:00:30]} 4. g3 {[%emt 0:00:51]} Ba6 {[%emt 0:01:10]} 5. Qa4 {[%emt 0:00:43]} Bb7 {[%emt 0:00:14]} 6. Bg2 {[%emt 0:00:05]} c5 {[%emt 0:00:10]} 7. dxc5 {[%emt 0:00:06]} bxc5 {[%emt 0:00:12]} 8. O-O {[%emt 0:00:40]} Be7 {[%emt 0:00:50]} 9. Nc3 {[%emt 0:00:29]} O-O {[%emt 0:01:42]} 10. Rd1 {[%emt 0:00:29]} Qb6 {[%emt 0:00:40]} 11. Bf4 {[%emt 0:02:56]} Nc6 {[%emt 0:03:09]} 12. Qb5 {[%emt 0:03:05]} Na5 {[%emt 0:00:50]} 13. Qxb6 {[%emt 0:01:50]} axb6 {[%emt 0:00:15]} 14. b3 {[%emt 0:00:11]} d5 {[%emt 0:01:01]} 15. cxd5 {[%emt 0:04:09]} exd5 {[%emt 0:04:32]} 16. e3 {[%emt 0:02:31]} h6 {[%emt 0:06:36]} 17. Rac1 {[%emt 0:02:35]} Nc6 {[%emt 0:08:15]} 18. h4 {[%emt 0:04:35]} Nb4 {[%emt 0:01:30]} 19. a4 {[%emt 0:05:22]} Rac8 {[%emt 0:13:12]} 20. Nb5 {[%emt 0:02:29]} Ne4 {[%emt 0:02:56]} 21. Ne1 {[%emt 0:05:37]} Na2 {[%emt 0:05:59]} 22. Rc2 {[%emt 0:00:56]} Nb4 {[%emt 0:00:06]} 23. Rcc1 {[%emt 0:00:06]} Na2 {[%emt 0:01:08]} 24. Rc2 {[%emt 0:00:07]} Nb4 {[%emt 0:00:06]} 25. Rcc1 {[%emt 0:00:04]} 1/2-1/2

[Event "FRA-chTW Top 12 2019"]
[Site "Vandoeuvre"]
[Date "2019.05.03"]
[Round "3.3"]
[White "Leconte, Maria"]
[Black "Franc, Nathalie"]
[Result "1-0"]
[ECO "C30"]
[WhiteElo "2246"]
[BlackElo "2004"]
[Annotator "NA"]
[PlyCount "51"]
[EventDate "2019.05.02"]
[EventType "team-tourn"]
[EventCountry "FRA"]
[SourceTitle "playchess.com"]
[Source "ChessBase"]
[SourceQuality "1"]
[TimeControl "40/5400+30:1800+30"]

1. e4 {[%emt 0:00:00]} d6 {[%emt 0:00:00]} 2. Nc3 {[%emt 0:00:00]} Nf6 {[%emt 0:01:39]} 3. f4 {[%emt 0:00:09]} e5 {[%emt 0:01:48]} 4. Nf3 {[%emt 0:00:22]} Nbd7 {[%emt 0:00:41]} 5. Bc4 {[%emt 0:01:41]} h6 {[%emt 0:01:03]} 6. d3 {[%emt 0:01:01]} Be7 {[%emt 0:02:21]} 7. a4 {[%emt 0:04:58]} c6 {[%emt 0:02:00]} 8. O-O {[%emt 0:07:19]} Qc7 {[%emt 0:02:26]} 9. a5 {[%emt 0:07:05]} Nf8 {[%emt 0:05:16]} 10. f5 {[%emt 0:02:22]} d5 {[%emt 0:07:58]} 11. Bb3 {[%emt 0:07:29]} dxe4 {[%emt 0:07:04]} 12. dxe4 {[%emt 0:00:17]} Bb4 {[%emt 0:00:39]} 13. Qe2 {[%emt 0:08:28]} Bxa5 {[%emt 0:14:04]} 14. Rxa5 {[%emt 0:15:22]} Qxa5 {[%emt 0:00:17]} 15. Qc4 {[%emt 0:00:17]} Ne6 {[%emt 0:02:42]} 16. fxe6 {[%emt 0:01:34]} Bxe6 {[%emt 0:00:19]} 17. Qe2 {[%emt 0:00:24]} Bxb3 {[%emt 0:02:48]} 18. cxb3 {[%emt 0:00:05]} O-O-O {[%emt 0:02:04]} 19. Be3 {[%emt 0:05:08]} Rhe8 {[%emt 0:07:44]} 20. Nd2 {[%emt 0:00:25]} Kb8 {[%emt 0:05:29]} 21. Nc4 {[%emt 0:00:13]} Qb4 {[%emt 0:03:17]} 22. Ra1 {[%emt 0:03:34]} a6 {[%emt 0:02:12]} 23. h3 {[%emt 0:04:47]} Nd7 {[%emt 0:05:10]} 24. Qf2 {[%emt 0:08:59]} f6 {[%emt 0:06:37]} 25. Na5 {[%emt 0:00:11]} Nf8 {[%emt 0:05:00]} 26. Bc5 {[%emt 0:01:10]} 1-0

[Event "FRA-chTW Top 12 2019"]
[Site "Vandoeuvre"]
[Date "2019.05.03"]
[Round "3.3"]
[White "Nicolas, Gabrielle"]
[Black "Maisuradze, Nino"]
[Result "0-1"]
[ECO "E14"]
[WhiteElo "1733"]
[BlackElo "2179"]
[Annotator "NA"]
[PlyCount "52"]
[EventDate "2019.05.02"]
[EventType "team-tourn"]
[EventCountry "FRA"]
[SourceTitle "playchess.com"]
[Source "ChessBase"]
[SourceQuality "1"]
[TimeControl "40/5400+30:1800+30"]

1. d4 {[%emt 0:00:00]} Nf6 {[%emt 0:00:20]} 2. Nf3 {[%emt 0:00:03]} b6 {[%emt 0:00:51]} 3. c4 {[%emt 0:03:33]} e6 {[%emt 0:01:01]} 4. e3 {[%emt 0:03:24]} Bb7 {[%emt 0:00:23]} 5. Be2 {[%emt 0:01:08]} d5 {[%emt 0:05:18]} 6. O-O {[%emt 0:05:16]} Bd6 {[%emt 0:01:18]} 7. Nbd2 {[%emt 0:01:08]} O-O {[%emt 0:02:44]} 8. b3 {[%emt 0:02:31]} Nbd7 {[%emt 0:03:26]} 9. Bb2 {[%emt 0:03:02]} Qe7 {[%emt 0:02:41]} 10. Ne5 {[%emt 0:03:28]} Rfd8 {[%emt 0:05:05]} 11. f4 {[%emt 1:11:57]} c5 {[%emt 0:01:48]} 12. Qe1 {[%emt 0:00:00]} cxd4 {[%emt 0:05:07]} 13. Nxd7 {[%emt 0:00:00]} Rxd7 {[%emt 0:01:08]} 14. Bxd4 {[%emt 0:00:00]} Bb4 {[%emt 0:00:33]} 15. Qc1 {[%emt 0:00:00]} Rc8 {[%emt 0:01:35]} 16. a3 {[%emt 0:00:00]} Bc5 {[%emt 0:01:20]} 17. Qb2 {[%emt 0:00:00]} dxc4 {[%emt 0:00:41]} 18. Nxc4 {[%emt 0:00:00]} Bxd4 {[%emt 0:03:22]} 19. exd4 {[%emt 0:00:00]} Qd8 {[%emt 0:01:54]} 20. Rad1 {[%emt 0:00:00]} Be4 {[%emt 0:04:41]} 21. Rd2 {[%emt 0:00:00]} Rdc7 {[%emt 0:01:25]} 22. Bd3 {[%emt 0:00:00]} b5 {[%emt 0:06:47]} 23. Ne3 {[%emt 0:00:00]} Rc3 {[%emt 0:00:57]} 24. Qb1 {[%emt 0:00:00]} Qxd4 {[%emt 0:00:52]} 25. Bxe4 {[%emt 0:00:00]} Qxe3+ {[%emt 0:00:36]} 26. Rff2 {[%emt 0:00:00]} Rc1+ {[%emt 0:01:17]} 0-1

[Event "FRA-chTW Top 12 2019"]
[Site "Vandoeuvre"]
[Date "2019.05.03"]
[Round "3.4"]
[White "Bauer, Alexandra"]
[Black "Dornbusch, Tatiana"]
[Result "0-1"]
[ECO "A48"]
[WhiteElo "1349"]
[BlackElo "2285"]
[Annotator "NA"]
[PlyCount "62"]
[EventDate "2019.05.02"]
[EventType "team-tourn"]
[EventCountry "FRA"]
[SourceTitle "playchess.com"]
[Source "ChessBase"]
[SourceQuality "1"]
[TimeControl "40/5400+30:1800+30"]

1. d4 {[%emt 0:00:59]} Nf6 {[%emt 0:00:00]} 2. Bf4 {[%emt 0:00:32]} c5 {[%emt 0:00:55]} 3. e3 {[%emt 0:01:07]} g6 {[%emt 0:00:23]} 4. Nf3 {[%emt 0:01:07]} Bg7 {[%emt 0:00:12]} 5. c3 {[%emt 0:01:42]} O-O {[%emt 0:12:39]} 6. Be2 {[%emt 0:01:57]} d6 {[%emt 0:00:10]} 7. O-O {[%emt 0:01:15]} Nc6 {[%emt 0:01:16]} 8. Nbd2 {[%emt 0:06:56]} cxd4 {[%emt 0:20:36]} 9. exd4 {[%emt 0:05:49]} Be6 {[%emt 0:01:01]} 10. Re1 {[%emt 0:05:13]} Qb6 {[%emt 0:01:48]} 11. Qc1 {[%emt 0:10:28]} Rac8 {[%emt 0:01:02]} 12. Bc4 {[%emt 0:10:29]} Bxc4 {[%emt 0:07:57]} 13. Nxc4 {[%emt 0:00:16]} Qa6 {[%emt 0:00:24]} 14. Ne3 {[%emt 0:04:23]} Nb4 {[%emt 0:02:14]} 15. Nc2 {[%emt 0:09:12]} Nd3 {[%emt 0:00:40]} 16. Qd2 {[%emt 0:00:10]} Nxe1 {[%emt 0:00:20]} 17. Qxe1 {[%emt 0:03:18]} Nd5 {[%emt 0:01:29]} 18. Bg3 {[%emt 0:01:09]} Qb5 {[%emt 0:04:43]} 19. Qc1 {[%emt 0:14:19]} Qd3 {[%emt 0:03:35]} 20. Qd2 {[%emt 0:04:24]} Qxd2 {[%emt 0:00:56]} 21. Nxd2 {[%emt 0:00:04]} b5 {[%emt 0:00:26]} 22. Ne3 {[%emt 0:02:29]} Nb6 {[%emt 0:01:44]} 23. Rc1 {[%emt 0:03:05]} Bxd4 {[%emt 0:01:08]} 24. Re1 {[%emt 0:02:14]} Bg7 {[%emt 0:00:40]} 25. Nb3 {[%emt 0:00:59]} d5 {[%emt 0:02:10]} 26. Nc2 {[%emt 0:01:59]} Rfe8 {[%emt 0:01:05]} 27. f4 {[%emt 0:01:42]} Nc4 {[%emt 0:00:59]} 28. Ncd4 {[%emt 0:05:16]} Nxb2 {[%emt 0:01:34]} 29. Nxb5 {[%emt 0:00:51]} a6 {[%emt 0:00:13]} 30. N5d4 {[%emt 0:00:29]} Rxc3 {[%emt 0:00:23]} 31. Re2 {[%emt 0:01:05]} Nd3 {[%emt 0:01:03]} 0-1

[Event "FRA-chTW Top 12 2019"]
[Site "Vandoeuvre"]
[Date "2019.05.03"]
[Round "3.6"]
[White "Skripchenko, Almira"]
[Black "Le Du, Maelle"]
[Result "1-0"]
[ECO "C50"]
[WhiteElo "2406"]
[BlackElo "1673"]
[Annotator "NA"]
[PlyCount "99"]
[EventDate "2019.05.02"]
[EventType "team-tourn"]
[EventCountry "FRA"]
[SourceTitle "playchess.com"]
[Source "ChessBase"]
[SourceQuality "1"]
[TimeControl "40/5400+30:1800+30"]

1. e4 {[%emt 0:00:00]} e5 {[%emt 0:00:00]} 2. Nf3 {[%emt 0:00:00]} Nc6 {[%emt 0:00:00]} 3. Bc4 {[%emt 0:00:09]} Nf6 {[%emt 0:00:56]} 4. d3 {[%emt 0:00:22]} h6 {[%emt 0:00:50]} 5. Nc3 {[%emt 0:01:39]} Bc5 {[%emt 0:02:45]} 6. h3 {[%emt 0:02:28]} d6 {[%emt 0:00:47]} 7. a3 {[%emt 0:00:27]} Be6 {[%emt 0:01:30]} 8. Bxe6 {[%emt 0:08:23]} fxe6 {[%emt 0:00:13]} 9. Na4 {[%emt 0:00:09]} Bb6 {[%emt 0:03:11]} 10. Nxb6 {[%emt 0:00:40]} axb6 {[%emt 0:00:09]} 11. c3 {[%emt 0:04:45]} Qd7 {[%emt 0:05:55]} 12. Qe2 {[%emt 0:02:39]} Qf7 {[%emt 0:05:16]} 13. Bd2 {[%emt 0:07:14]} Nd7 {[%emt 0:20:48]} 14. d4 {[%emt 0:01:44]} exd4 {[%emt 0:02:36]} 15. cxd4 {[%emt 0:01:43]} O-O {[%emt 0:09:26]} 16. O-O {[%emt 0:02:46]} Qg6 {[%emt 0:06:45]} 17. Rfe1 {[%emt 0:16:37]} Rf7 {[%emt 0:16:02]} 18. Kh2 {[%emt 0:17:25]} Raf8 {[%emt 0:03:20]} 19. Bc3 {[%emt 0:02:40]} e5 {[%emt 0:04:18]} 20. dxe5 {[%emt 0:07:59]} Ndxe5 {[%emt 0:01:05]} 21. Nxe5 {[%emt 0:00:17]} Nxe5 {[%emt 0:00:15]} 22. Bxe5 {[%emt 0:01:47]} dxe5 {[%emt 0:00:27]} 23. f3 {[%emt 0:00:21]} Rd8 {[%emt 0:02:37]} 24. Rad1 {[%emt 0:03:48]} Rfd7 {[%emt 0:01:03]} 25. Rxd7 {[%emt 0:03:00]} Rxd7 {[%emt 0:00:02]} 26. Rd1 {[%emt 0:01:18]} Qc6 {[%emt 0:02:01]} 27. Rxd7 {[%emt 0:02:51]} Qxd7 {[%emt 0:00:02]} 28. Qc4+ {[%emt 0:00:11]} Kh7 {[%emt 0:00:17]} 29. Qc3 {[%emt 0:06:35]} Qd6 {[%emt 0:01:00]} 30. h4 {[%emt 0:00:22]} Qc5 {[%emt 0:05:16]} 31. Qb3 {[%emt 0:00:33]} Qd6 {[%emt 0:02:23]} 32. Kh3 {[%emt 0:03:06]} Qd7+ {[%emt 0:01:41]} 33. Kg3 {[%emt 0:00:10]} Kg6 {[%emt 0:00:31]} 34. Qg8 {[%emt 0:00:40]} Qe7 {[%emt 0:01:36]} 35. Qc8 {[%emt 0:00:18]} Qf6 {[%emt 0:01:05]} 36. Kh3 {[%emt 0:01:19]} Qf4 {[%emt 0:00:43]} 37. Qxc7 {[%emt 0:00:49]} Qf6 {[%emt 0:00:37]} 38. Qd7 {[%emt 0:00:38]} Qf4 {[%emt 0:00:58]} 39. Qe6+ {[%emt 0:00:23]} Qf6 {[%emt 0:00:17]} 40. Qxf6+ {[%emt 0:00:57]} Kxf6 {[%emt 0:00:04]} 41. Kg3 {[%emt 0:30:13]} b5 {[%emt 0:30:11]} 42. f4 {[%emt 0:00:30]} exf4+ {[%emt 0:00:26]} 43. Kxf4 {[%emt 0:00:05]} b6 {[%emt 0:01:29]} 44. e5+ {[%emt 0:00:57]} Ke6 {[%emt 0:00:13]} 45. h5 {[%emt 0:00:24]} Kd5 {[%emt 0:00:52]} 46. Kf5 {[%emt 0:00:10]} Kc4 {[%emt 0:00:04]} 47. e6 {[%emt 0:00:19]} Kb3 {[%emt 0:00:07]} 48. e7 {[%emt 0:00:05]} Kxb2 {[%emt 0:00:02]} 49. e8=Q {[%emt 0:00:09]} Kxa3 {[%emt 0:00:08]} 50. Qxb5 {[%emt 0:00:10]} 1-0

[Event "FRA-chTW Top 12 2019"]
[Site "Vandoeuvre"]
[Date "2019.05.03"]
[Round "3.6"]
[White "Thomas, Anysia"]
[Black "L'Ami, Alina"]
[Result "0-1"]
[ECO "E90"]
[WhiteElo "2178"]
[BlackElo "2286"]
[Annotator "NA"]
[PlyCount "64"]
[EventDate "2019.05.02"]
[EventType "team-tourn"]
[EventCountry "FRA"]
[SourceTitle "playchess.com"]
[Source "ChessBase"]
[SourceQuality "1"]
[TimeControl "40/5400+30:1800+30"]

1. d4 {[%emt 0:00:00]} Nf6 {[%emt 0:00:00]} 2. c4 {[%emt 0:00:00]} g6 {[%emt 0:00:00]} 3. Nc3 {[%emt 0:00:00]} Bg7 {[%emt 0:00:00]} 4. e4 {[%emt 0:00:00]} d6 {[%emt 0:00:00]} 5. h3 {[%emt 0:00:00]} O-O {[%emt 0:00:00]} 6. Nf3 {[%emt 0:00:03]} e5 {[%emt 0:00:24]} 7. d5 {[%emt 0:00:07]} c6 {[%emt 0:11:33]} 8. Be3 {[%emt 0:05:41]} cxd5 {[%emt 0:02:19]} 9. cxd5 {[%emt 0:00:07]} Nh5 {[%emt 0:01:48]} 10. g3 {[%emt 0:00:49]} a6 {[%emt 0:08:10]} 11. a4 {[%emt 0:05:41]} Qe8 {[%emt 0:02:10]} 12. Be2 {[%emt 0:04:45]} f5 {[%emt 0:08:53]} 13. exf5 {[%emt 0:04:51]} gxf5 {[%emt 0:00:20]} 14. Nd2 {[%emt 0:10:32]} Nf6 {[%emt 0:02:04]} 15. Nc4 {[%emt 0:01:31]} Nbd7 {[%emt 0:10:39]} 16. Nxd6 {[%emt 0:03:52]} Qg6 {[%emt 0:00:11]} 17. Qc2 {[%emt 0:08:24]} Ne8 {[%emt 0:10:19]} 18. Nxe8 {[%emt 0:07:14]} Qxe8 {[%emt 0:03:08]} 19. Qd2 {[%emt 0:07:19]} f4 {[%emt 0:09:34]} 20. gxf4 {[%emt 0:02:27]} exf4 {[%emt 0:00:36]} 21. Bxf4 {[%emt 0:04:59]} Nc5 {[%emt 0:03:45]} 22. Qe3 {[%emt 0:09:45]} Qg6 {[%emt 0:07:09]} 23. Qxc5 {[%emt 0:17:54]} Rxf4 {[%emt 0:00:02]} 24. Qc7 {[%emt 0:00:36]} Bh6 {[%emt 0:07:17]} 25. d6 {[%emt 0:03:24]} Qg2 {[%emt 0:07:46]} 26. Rf1 {[%emt 0:00:23]} Bxh3 {[%emt 0:00:33]} 27. Bc4+ {[%emt 0:02:16]} Kh8 {[%emt 0:00:20]} 28. Bd3 {[%emt 0:00:34]} Re8+ {[%emt 0:02:23]} 29. Kd1 {[%emt 0:00:18]} Bf5 {[%emt 0:01:41]} 30. d7 {[%emt 0:00:54]} Qxf1+ {[%emt 0:00:41]} 31. Bxf1 {[%emt 0:00:11]} Rd4+ {[%emt 0:00:01]} 32. Bd3 {[%emt 0:00:41]} Rxd3+ {[%emt 0:00:02]} 0-1

[Event "FRA-chTW Top 12 2019"]
[Site "Vandoeuvre"]
[Date "2019.05.03"]
[Round "3.7"]
[White "Afraoui, Anaelle"]
[Black "Steil-Antoni, Fiona"]
[Result "1-0"]
[ECO "B15"]
[WhiteElo "2068"]
[BlackElo "2156"]
[Annotator "NA"]
[PlyCount "99"]
[EventDate "2019.05.02"]
[EventType "team-tourn"]
[EventCountry "FRA"]
[SourceTitle "playchess.com"]
[Source "ChessBase"]
[SourceQuality "1"]
[TimeControl "40/5400+30:1800+30"]

1. e4 {[%emt 0:00:00]} c6 {[%emt 0:00:00]} 2. d4 {[%emt 0:00:00]} d5 {[%emt 0:00:16]} 3. Nc3 {[%emt 0:00:00]} dxe4 {[%emt 0:00:22]} 4. Nxe4 {[%emt 0:00:04]} Nf6 {[%emt 0:00:07]} 5. Nxf6+ {[%emt 0:00:12]} exf6 {[%emt 0:00:07]} 6. Bc4 {[%emt 0:00:58]} Bd6 {[%emt 0:00:21]} 7. Qe2+ {[%emt 0:00:19]} Qe7 {[%emt 0:00:47]} 8. Qxe7+ {[%emt 0:01:49]} Kxe7 {[%emt 0:00:02]} 9. Ne2 {[%emt 0:05:00]} Be6 {[%emt 0:05:12]} 10. Bd3 {[%emt 0:04:05]} Nd7 {[%emt 0:01:18]} 11. Ng3 {[%emt 0:04:51]} c5 {[%emt 0:05:46]} 12. d5 {[%emt 0:07:01]} Bxd5 {[%emt 0:09:52]} 13. Nf5+ {[%emt 0:01:30]} Ke6 {[%emt 0:00:03]} 14. Nxg7+ {[%emt 0:02:23]} Ke7 {[%emt 0:00:02]} 15. Nf5+ {[%emt 0:02:26]} Ke6 {[%emt 0:00:02]} 16. Ne3 {[%emt 0:13:19]} Nb6 {[%emt 0:04:52]} 17. Bf5+ {[%emt 0:07:54]} Ke7 {[%emt 0:00:02]} 18. Nxd5+ {[%emt 0:01:01]} Nxd5 {[%emt 0:00:03]} 19. O-O {[%emt 0:04:51]} Nf4 {[%emt 0:03:39]} 20. Re1+ {[%emt 0:01:43]} Ne6 {[%emt 0:00:52]} 21. Be4 {[%emt 0:01:59]} Rab8 {[%emt 0:01:46]} 22. Bh6 {[%emt 0:01:27]} Rhg8 {[%emt 0:05:20]} 23. Rad1 {[%emt 0:08:25]} b5 {[%emt 0:09:31]} 24. Bc1 {[%emt 0:07:54]} Rbd8 {[%emt 0:16:17]} 25. g3 {[%emt 0:02:21]} h5 {[%emt 0:00:19]} 26. h4 {[%emt 0:05:18]} Be5 {[%emt 0:12:00]} 27. c3 {[%emt 0:05:27]} Rxd1 {[%emt 0:01:52]} 28. Rxd1 {[%emt 0:00:04]} b4 {[%emt 0:01:52]} 29. cxb4 {[%emt 0:00:29]} cxb4 {[%emt 0:00:55]} 30. Be3 {[%emt 0:04:00]} Bxb2 {[%emt 0:06:41]} 31. Bxa7 {[%emt 0:00:18]} Kf8 {[%emt 0:01:19]} 32. Rd5 {[%emt 0:02:30]} Be5 {[%emt 0:01:25]} 33. Rb5 {[%emt 0:00:38]} Kg7 {[%emt 0:00:32]} 34. Rxb4 {[%emt 0:00:14]} Rd8 {[%emt 0:00:19]} 35. Bf3 {[%emt 0:00:53]} Kg6 {[%emt 0:02:55]} 36. Be3 {[%emt 0:00:37]} Rc8 {[%emt 0:04:29]} 37. a4 {[%emt 0:01:09]} Rc3 {[%emt 0:00:17]} 38. Kg2 {[%emt 0:01:13]} Ra3 {[%emt 0:00:41]} 39. Bb6 {[%emt 0:00:42]} f5 {[%emt 0:01:14]} 40. a5 {[%emt 0:02:00]} f4 {[%emt 0:00:31]} 41. Rb5 {[%emt 0:30:18]} f6 {[%emt 0:30:51]} 42. Be4+ {[%emt 0:01:17]} Kh6 {[%emt 0:00:39]} 43. Bd5 {[%emt 0:00:45]} Ng7 {[%emt 0:01:40]} 44. Rb3 {[%emt 0:00:15]} Ra1 {[%emt 0:00:28]} 45. Bb7 {[%emt 0:00:48]} Ne6 {[%emt 0:01:08]} 46. a6 {[%emt 0:00:04]} Nd4 {[%emt 0:01:28]} 47. Rb4 {[%emt 0:00:48]} Nc2 {[%emt 0:02:01]} 48. Re4 {[%emt 0:00:23]} fxg3 {[%emt 0:00:44]} 49. a7 {[%emt 0:01:03]} gxf2 {[%emt 0:00:22]} 50. Kxf2 {[%emt 0:00:04]} 1-0